bitfinex/quotes_ETHUSD_20210701
["timestamp","ask_amount","ask_price","bid_price","bid_amount"]
[1625170715028,21.7871,2110.7,2109.1,3.2744]
[1625170715103,21.7871,2110.7,2109.1,13.42441818]
[1625170715197,21.7871,2110.7,2109.2,0.15]
[1625170715550,0.00998484,2110.8,2109.8,7.10484]
[1625170715652,0.00998484,2110.8,2109.8,11.89134]
[1625170715745,0.00998484,2110.8,2109.9,0.15]
[1625170716002,0.00998484,2110.8,2109.8,4.7865]
[1625170716097,0.00998484,2110.8,2109.7,2.6408]
[1625170716098,0.00998484,2110.8,2109.7,1.3228]
[1625170716301,0.06,2111.0,2109.7,1.3228]
[1625170716560,0.18,2110.9,2109.7,1.3228]
[1625170716815,10.26105,2110.4,2109.1,10.6418]
[1625170716915,25.26105,2110.4,2109.1,0.2]
[1625170717013,30.27105,2110.4,2109.1,0.2]
[1625170717166,0.04,2110.3,2109.1,0.2]
[1625170717325,3.59493,2110.3,2109.1,0.2]
[1625170717415,15.12,2110.2,2109.1,0.2]
[1625170717515,23.13904699,2110.2,2109.1,0.2]
[1625170717663,28.14904699,2110.2,2109.1,0.2]
[1625170717862,0.18,2110.1,2109.1,0.2]
[1625170718261,3.7354121,2110.1,2109.1,0.2]
[1625170718363,15.0,2110.0,2109.1,0.2]
[1625170718519,11.06988,2109.7,2109.1,0.2]
[1625170718613,15.0,2109.6,2109.1,0.2]
[1625170718815,0.18,2109.5,2109.1,0.2]
[1625170719555,28.01,2109.6,2109.1,0.2]
[1625170720109,28.01,2109.6,2109.1,0.0001]
[1625170720458,7.11136,2109.4,2109.1,0.0001]
[1625170720558,12.12136,2109.4,2109.1,0.0001]
[1625170720918,9.48128,2109.8,2109.1,0.0001]
[1625170721066,10.0803,2110.0,2109.1,0.0001]
[1625170721813,10.0803,2110.0,2109.1,0.1501]
[1625170722116,10.0803,2110.0,2109.1,7.25737]
[1625170722215,20.1068,2110.2,2109.1,7.25737]
[1625170722317,9.9385,2110.2,2109.1,12.26737]
[1625170722414,9.9385,2110.2,2109.1,0.1501]
[1625170722715,14.9485,2110.2,2109.1,0.1501]
[1625170723670,22.05612,2110.2,2109.1,0.1501]
[1625170725155,22.05612,2110.2,2109.1,0.0001]
[1625170725156,37.9485,2110.2,2109.1,0.0001]
[1625170725455,0.1,2110.1,2109.1,0.0001]
[1625170726211,7.10902,2109.7,2109.1,0.0001]
[1625170726353,14.9485,2110.2,2109.1,0.0001]
[1625170726454,9.9385,2110.2,2109.1,0.0001]
[1625170726662,9.9385,2110.2,2109.1,0.1501]
[1625170727557,7.10545,2110.6,2109.2,0.04709254]
[1625170727706,7.10545,2110.6,2109.3,0.15]
[1625170727806,7.10545,2110.6,2109.3,5.0194]
[1625170727907,7.10545,2110.6,2109.4,0.15]
[1625170728159,22.57753,2110.7,2109.4,0.15]
[1625170728160,10.7283,2110.7,2109.4,0.15]
[1625170728254,10.7283,2110.7,2109.5,0.04725209]
[1625170728557,10.7283,2110.7,2109.6,0.15]
[1625170728708,10.7283,2110.7,2109.6,7.25505]
[1625170728809,20.9545,2110.8,2109.6,7.25505]
[1625170728907,20.9545,2110.8,2109.7,0.054818]
[1625170729059,20.9545,2110.8,2109.7,0.204818]
[1625170729157,20.9545,2110.8,2109.7,0.15]
[1625170729259,25.9645,2110.8,2109.7,0.15]
[1625170729909,25.9645,2110.8,2109.7,43.91876689]
[1625170730061,25.9645,2110.8,2109.8,0.08313287]
[1625170730410,7.10549,2110.6,2109.8,0.08313287]
[1625170730511,35.43849,2110.8,2109.7,0.15]
[1625170730612,5.01,2110.6,2109.4,5.01]
[1625170730711,5.01,2110.6,2109.4,5.16]
[1625170730856,20.01,2110.7,2109.4,0.15]
[1625170730955,20.01,2110.7,2109.4,5.16]
[1625170731053,20.01,2110.7,2109.4,0.15]
[1625170731487,7.10693,2110.1,2109.4,0.15]
[1625170731585,12.11693,2110.1,2109.4,0.15]
[1625170732486,16.47803,2110.1,2109.1,0.0001]
[1625170732736,31.47803,2110.1,2109.1,0.0001]
[1625170732838,39.47803,2110.1,2109.1,0.0001]
[1625170732938,0.14,2110.0,2109.1,0.0001]
[1625170733738,10.43874,2109.6,2109.1,0.0001]
[1625170733838,25.43874,2109.6,2109.1,0.0001]
[1625170733939,0.14,2109.5,2109.1,0.0001]
[1625170734289,8.14,2109.5,2109.1,0.0001]
[1625170734490,30.1,2109.4,2107.9,0.15]
[1625170734597,15.0,2109.3,2107.8,12.76605563]
[1625170734695,15.0,2109.3,2107.4,14.2066]
[1625170734790,0.06903795,2109.2,2107.4,14.2066]
[1625170734891,0.99779165,2109.2,2107.4,14.2066]
[1625170734993,0.99779165,2109.2,2107.4,10.2066]
[1625170735092,0.18,2109.1,2107.4,10.2066]
[1625170735195,3.58686388,2109.0,2107.4,10.2066]
[1625170735430,8.59686388,2109.0,2107.4,10.2066]
[1625170735532,23.59686388,2109.0,2107.4,10.2066]
[1625170735782,0.08,2108.9,2107.4,10.2066]
[1625170735883,7.1131,2108.5,2107.2,7.11284]
[1625170736032,16.2558,2108.5,2107.2,7.11284]
[1625170736135,13.44848581,2108.5,2107.2,7.11284]
[1625170736635,13.44848581,2108.5,2107.2,12.12284]
[1625170737575,8.43848581,2108.5,2107.2,12.12284]
[1625170737674,13.44848581,2108.5,2107.2,12.12284]
[1625170738027,8.43848581,2108.5,2107.2,12.12284]
[1625170738131,4.1327,2108.5,2107.3,0.15]
[1625170738228,10.1979,2109.0,2107.4,3.36579155]
[1625170738330,10.1979,2109.0,2107.8,4.6757]
[1625170738430,0.00691483,2109.1,2107.8,4.6757]
[1625170738525,0.00691483,2109.1,2107.8,9.6857]
[1625170738632,0.00691483,2109.1,2108.0,2.5152]
[1625170738780,10.2539,2109.5,2108.0,2.5152]
[1625170738877,21.023,2109.7,2108.0,7.5252]
[1625170738978,21.023,2109.7,2108.2,0.06005763]
[1625170739181,7.10951,2109.6,2108.5,7.10889]
[1625170739279,7.10951,2109.6,2108.5,11.32529]
[1625170739430,21.023,2109.7,2108.5,11.32529]
[1625170739532,21.5885,2110.0,2108.6,0.15]
[1625170739628,10.6325,2110.0,2108.6,0.23826248]
[1625170739728,10.6325,2110.0,2108.6,0.29826248]
[1625170739986,32.49158,2110.6,2108.6,6.2409353]
[1625170740084,32.49158,2110.6,2109.3,0.13293902]
[1625170740785,7.10654,2110.4,2109.5,7.1056]
[1625170740892,20.6424,2110.6,2109.5,7.1056]
[1625170740991,20.6424,2110.6,2109.6,0.20684224]
[1625170741238,20.6424,2110.6,2109.6,0.15]
[1625170742360,27.74765,2110.6,2109.6,0.15]
[1625170742656,32.75765,2110.6,2109.6,0.15]
[1625170743308,40.75765,2110.6,2109.6,0.15]
[1625170743459,0.08,2110.5,2109.4,4.0]
[1625170744008,3.55412,2110.2,2109.4,4.0]
[1625170744106,3.55412,2110.2,2108.8,3.5]
[1625170744208,12.01982,2110.2,2108.8,3.5]
[1625170744341,12.01982,2110.2,2108.7,0.00727019]
[1625170744531,7.1087,2109.5,2108.7,0.00727019]
[1625170744884,18.04074,2110.2,2108.7,0.00727019]
[1625170745087,18.04074,2110.2,2108.8,0.15]
[1625170745887,7.10786,2109.7,2108.8,0.15]
[1625170747173,12.06876,2109.7,2108.8,0.15]
[1625170747528,17.07876,2109.7,2108.5,7.39960132]
[1625170747626,32.07876,2109.7,2108.5,5.01]
[1625170747776,32.07876,2109.7,2108.1,22.91418]
[1625170747777,0.13823778,2109.6,2108.1,11.07]
[1625170748075,0.13823778,2109.6,2108.1,7.07]
[1625170748228,4.7599248,2109.2,2108.1,7.07]
[1625170748326,10.3094248,2109.2,2108.1,7.07]
[1625170748424,3.57210872,2109.1,2108.1,7.07]
[1625170748528,10.85978,2108.7,2108.1,0.2]
[1625170748727,3.7478,2108.7,2108.1,0.2]
[1625170749121,30.176,2109.3,2108.1,0.2]
[1625170749224,20.0857,2109.3,2108.1,3.5613]
[1625170749418,10.7129,2109.4,2108.2,2.38960132]
[1625170749519,17.33369,2109.7,2108.7,7.10853]
[1625170749617,7.10859,2109.7,2108.7,7.10853]
[1625170749718,7.10859,2109.7,2108.7,16.64133]
[1625170749922,11.85175,2110.1,2108.7,16.64133]
[1625170750669,7.10929,2109.5,2108.7,9.5328]
[1625170750767,7.10929,2109.5,2108.6,2.7138]
[1625170750867,7.10929,2109.5,2108.5,9.47804]
[1625170751241,7.10929,2109.5,2108.3,13.47731]
[1625170751344,7.10929,2109.5,2108.3,4.0]
[1625170751489,19.5073,2109.4,2108.3,4.0]
[1625170751591,27.6473,2109.4,2108.3,4.0]
[1625170751687,32.6573,2109.4,2108.3,4.0]
[1625170751894,7.11192,2108.9,2108.3,4.0]
[1625170752143,12.04532,2108.9,2108.1,0.2]
[1625170752844,20.04532,2108.9,2108.1,0.2]
[1625170752942,17.9434,2108.9,2108.1,0.2]
[1625170753141,0.08,2108.8,2108.1,0.2]
[1625170753420,17.9434,2108.9,2108.1,0.2]
[1625170754416,7.11277,2108.5,2108.1,0.2]
[1625170754618,12.12277,2108.5,2108.1,0.2]
[1625170755886,9.48256,2109.0,2108.1,3.7408]
[1625170755986,3.5560626,2109.3,2108.1,3.7408]
[1625170755987,3.55607,2109.3,2108.1,3.7408]
[1625170756087,42.4431,2109.5,2108.1,8.7508]
[1625170756188,31.9372,2109.5,2108.1,8.7508]
[1625170756538,31.9372,2109.5,2108.2,0.19968218]
[1625170756636,31.9372,2109.5,2108.2,0.15]
[1625170756885,31.9372,2109.5,2108.2,0.19787333]
[1625170756986,31.9372,2109.5,2108.2,0.15]
[1625170757184,36.9472,2109.5,2108.2,0.15]
[1625170757435,44.05644,2109.5,2108.5,7.1091]
[1625170758748,11.85271,2110.0,2108.6,30.1]
[1625170758851,10.1261,2110.2,2108.6,35.20032948]
[1625170758954,10.1261,2110.2,2108.7,0.29]
[1625170759097,10.1261,2110.2,2109.0,4.0]
[1625170759201,10.0574,2110.4,2109.1,0.2423991]
[1625170759302,10.0574,2110.4,2109.1,5.3206991]
[1625170759398,11.0212,2110.7,2109.1,5.3206991]
[1625170759502,11.0212,2110.7,2109.1,10.3306991]
[1625170759605,26.0212,2110.7,2109.2,0.04]
[1625170759751,26.0212,2110.7,2109.3,0.22398387]
[1625170759855,22.10527,2110.7,2109.3,0.22398387]
[1625170760171,22.10527,2110.7,2109.2,0.20579348]
[1625170760266,10.69327,2110.7,2109.2,0.20579348]
[1625170760616,10.69327,2110.7,2109.2,0.15]
[1625170760617,23.70327,2110.7,2109.2,0.15]
[1625170760815,16.598,2110.7,2109.2,0.15]
[1625170760972,31.598,2110.7,2109.2,0.19485431]
[1625170761115,11.98827,2110.1,2109.2,0.15]
[1625170761312,16.99827,2110.1,2109.2,0.15]
[1625170762913,16.99827,2110.1,2109.0,0.00811634]
[1625170763816,4.8804,2110.1,2109.0,0.00811634]
[1625170763922,10.0132,2110.7,2109.0,0.00811634]
[1625170764019,10.0132,2110.7,2109.1,0.31948474]
[1625170764421,10.0132,2110.7,2109.1,0.27948474]
[1625170764520,10.7547,2110.8,2109.1,8.70131571]
[1625170764693,10.4726,2111.1,2109.3,0.26925621]
[1625170764790,10.4726,2111.1,2110.1,7.10397]
[1625170764890,7.10409,2111.3,2110.1,11.45767]
[1625170764993,7.10409,2111.3,2110.1,16.46767]
[1625170765089,7.10409,2111.3,2110.2,0.20247572]
[1625170765693,10.6185,2111.4,2110.2,0.20247572]
[1625170765890,10.6185,2111.4,2110.4,7.10297]
[1625170765992,10.6185,2111.4,2110.5,0.05046717]
[1625170766240,7.10316,2111.5,2110.5,0.05046717]
[1625170768049,7.10316,2111.5,2110.4,1.5561]
[1625170768148,7.10316,2111.5,2110.4,5.01]
[1625170768246,12.11316,2111.5,2110.4,5.01]
[1625170768348,12.11316,2111.5,2110.2,0.15]
[1625170768445,25.16236,2111.5,2110.2,0.15]
[1625170768552,7.10423,2111.2,2110.2,0.15]
[1625170771788,11.68063,2111.2,2110.2,0.15]
[1625170771890,16.69063,2111.2,2110.2,0.15]
[1625170771991,24.69063,2111.2,2110.2,0.15]
[1625170772091,24.69063,2111.2,2109.7,14.48257]
[1625170772538,39.69063,2111.2,2109.7,14.48257]
[1625170772689,39.69750991,2111.2,2109.7,5.01]
[1625170772788,39.69750991,2111.2,2109.5,14.63401]
[1625170772995,8.1508476,2111.1,2109.5,14.63401]
[1625170773091,18.55349,2111.0,2109.5,5.16]
[1625170773243,18.65237171,2111.0,2109.2,10.0765]
[1625170773342,0.00608433,2110.9,2109.2,10.0765]
[1625170773446,0.10036023,2110.8,2109.2,10.0765]
[1625170773539,15.10036023,2110.8,2109.2,10.0765]
[1625170773703,20.11036023,2110.8,2109.2,10.0765]
[1625170773792,7.10741,2110.2,2109.2,17.18374]
[1625170773891,7.10741,2110.2,2109.2,7.10724]
[1625170773991,0.01280726,2110.5,2109.2,7.10724]
[1625170774140,0.01048615,2110.5,2109.2,7.10724]
[1625170774591,0.01048615,2110.5,2109.2,12.11724]
[1625170774693,14.49209389,2110.6,2109.2,12.11724]
[1625170775441,7.10669,2110.5,2109.2,12.11724]
[1625170776726,5.01657389,2110.6,2109.2,15.99264]
[1625170776924,0.00657389,2110.6,2109.2,15.99264]
[1625170777027,5.01657389,2110.6,2109.2,15.99264]
[1625170777177,0.00657389,2110.6,2109.2,15.99264]
[1625170778470,0.96185178,2110.6,2109.2,15.99264]
[1625170778572,0.96185178,2110.6,2109.3,47.82042462]
[1625170778673,0.95527789,2110.6,2109.4,0.09427967]
[1625170779328,21.6286,2110.9,2109.3,52.83042462]
[1625170779329,34.6386,2110.9,2109.3,52.83042462]
[1625170779426,7.10607,2110.8,2109.7,7.10573]
[1625170779573,12.11607,2110.8,2109.7,7.10573]
[1625170782176,12.11607,2110.8,2109.5,9.4743]
[1625170782277,12.11607,2110.8,2109.5,14.4843]
[1625170783918,0.00761138,2110.7,2109.5,14.4843]
[1625170784121,7.10662,2110.5,2109.5,14.4843]
[1625170785378,0.01071889,2110.6,2109.5,14.4843]
[1625170785481,7.10586,2110.8,2109.5,14.4843]
[1625170785579,21.5688,2111.0,2109.5,14.6343]
[1625170785689,21.5688,2111.0,2109.6,0.04]
[1625170785881,21.5688,2111.0,2109.7,0.15]
[1625170787376,21.5688,2111.0,2110.3,7.10389]
[1625170787473,10.9371,2111.0,2110.3,7.10389]
[1625170787577,10.9371,2111.0,2110.3,16.65499]
[1625170787674,7.10483,2111.1,2110.3,16.65499]
[1625170788327,3.55208,2110.9,2110.3,16.65499]
[1625170788476,7.10416,2110.6,2110.3,9.5511]
[1625170788825,7.10416,2110.6,2109.6,4.0]
[1625170788927,7.10416,2110.6,2109.8,0.15]
[1625170789033,7.1055902,2110.3,2109.8,0.15]
[1625170789378,7.1055902,2110.3,2109.5,4.86952097]
[1625170789501,7.10678,2109.9,2109.5,4.86952097]
[1625170789592,3.5534251,2109.8,2109.5,4.86952097]
[1625170789693,3.5534251,2109.8,2109.5,2.49509155]
[1625170789846,3.5534251,2109.8,2109.4,4.0]
[1625170790197,3.5534251,2109.8,2108.8,25.71282097]
[1625170790294,3.5534251,2109.8,2108.8,4.86952097]
[1625170790795,3.55407,2109.5,2108.8,4.86952097]
[1625170791146,7.10818,2109.2,2108.8,4.86952097]
[1625170791769,4.30190579,2109.2,2108.8,4.86952097]
[1625170792570,4.30190579,2109.2,2108.8,2.49509155]
[1625170793418,0.8487,2109.3,2108.8,2.49509155]
[1625170793618,13.77781,2109.4,2108.8,2.49509155]
[1625170793723,13.77781,2109.4,2108.3,4.53077093]
[1625170793823,13.77781,2109.4,2108.3,4.0]
[1625170794035,3.55524,2109.3,2108.3,4.0]
[1625170794127,3.55524,2109.3,2108.2,0.53077093]
[1625170794431,7.11107,2108.8,2108.2,0.53077093]
[1625170794530,10.65757,2108.8,2108.2,0.53077093]
[1625170794927,10.65757,2108.8,2108.1,0.2]
[1625170795030,23.66757,2108.8,2108.1,0.2]
[1625170795128,3.55679,2108.7,2108.1,0.2]
[1625170795278,3.67679,2108.7,2108.1,0.2]
[1625170795375,8.68679,2108.7,2108.1,0.2]
[1625170795676,7.11366,2108.5,2108.1,0.2]
[1625170796300,3.55664,2108.8,2108.1,0.2]
[1625170796584,40.74255158,2109.2,2108.1,0.2]
[1625170796735,0.06,2109.1,2108.1,0.2]
[1625170797436,7.11204,2108.7,2108.1,0.2]
[1625170798186,17.48271,2108.9,2108.1,0.2]
[1625170798287,9.48271,2108.9,2108.1,0.2]
[1625170798385,44.29852938,2109.2,2108.1,0.2]
[1625170798529,48.74238938,2109.2,2108.1,0.2]
[1625170799077,0.08,2109.1,2108.1,0.2]
[1625170799481,7.11154,2109.0,2108.1,0.2]
[1625170799577,5.01,2109.0,2108.1,0.2]
[1625170799827,22.57209,2109.1,2108.1,0.2]
[1625170800328,22.49209,2109.1,2108.1,0.2]
[1625170800975,22.49209,2109.1,2108.1,3.8685]
[1625170801229,14.49209,2109.1,2108.1,3.8685]
[1625170801331,9.48209,2109.1,2108.1,3.8685]
[1625170801534,10.81231158,2109.2,2108.1,8.8785]
[1625170801631,0.00601158,2109.2,2108.1,8.8785]
[1625170801780,0.00601158,2109.2,2108.2,0.06]
[1625170801880,0.00601158,2109.2,2108.3,0.07056607]
[1625170802133,21.1693,2109.7,2108.3,0.07056607]
[1625170802229,10.6153,2109.7,2108.3,0.07056607]
[1625170802381,10.6153,2109.7,2108.5,0.11516361]
[1625170802734,10.6153,2109.7,2108.5,9.59300361]
[1625170802831,10.6153,2109.7,2108.5,9.47784]
[1625170803037,10.6153,2109.7,2108.5,14.48784]
[1625170803038,10.6153,2109.7,2108.6,3.48341401]
[1625170803132,10.6153,2109.7,2108.6,3.4384]
[1625170803231,10.6153,2109.7,2108.6,8.4484]
[1625170803635,36.3420596,2110.2,2108.6,8.4484]
[1625170803737,36.3420596,2110.2,2108.7,0.33508317]
[1625170803738,20.9358,2110.2,2108.7,0.33508317]
[1625170803833,20.9358,2110.2,2108.7,2.92989747]
[1625170804083,20.9358,2110.2,2108.7,7.93989747]
[1625170804183,10.1246,2110.2,2108.7,14.31432689]
[1625170804289,32.0177,2110.5,2108.7,14.21432689]
[1625170804738,32.0177,2110.5,2109.2,9.47594]
[1625170804837,21.2532,2110.5,2109.5,2.6005]
[1625170805035,21.2532,2110.5,2109.5,7.6105]
[1625170805136,10.3228,2110.5,2109.5,7.6105]
[1625170805283,10.3228,2110.5,2109.5,2.6005]
[1625170806084,23.3328,2110.5,2109.5,2.6005]
[1625170806385,15.3328,2110.5,2109.5,7.6105]
[1625170806543,15.3328,2110.5,2109.5,2.6005]
[1625170806715,23.3328,2110.5,2109.5,2.6005]
[1625170807167,7.10727,2110.2,2109.5,1.601]
[1625170807265,7.10727,2110.2,2109.2,17.99994]
[1625170807413,7.10727,2110.2,2109.3,5.01]
[1625170807565,7.10727,2110.2,2109.2,5.16]
[1625170807662,7.10727,2110.2,2109.2,5.01]
[1625170807763,7.10727,2110.2,2108.9,14.63507]
[1625170808409,7.10727,2110.2,2109.0,7.10784]
[1625170808609,7.10727,2110.2,2109.0,12.11784]
[1625170809263,15.3328,2110.5,2109.0,12.11784]
[1625170809409,15.3328,2110.5,2109.1,7.45106444]
[1625170809510,0.16082956,2109.7,2109.1,7.45106444]
[1625170809612,0.16082956,2109.7,2109.1,12.46106444]
[1625170809845,0.16082956,2109.7,2109.1,7.45106444]
[1625170809949,0.16082956,2109.7,2109.1,14.83549386]
[1625170810145,0.16082956,2109.7,2109.5,7.106]
[1625170810247,10.0706,2110.7,2109.6,29.95]
[1625170810351,10.0706,2110.7,2109.6,34.0652]
[1625170810445,10.0706,2110.7,2109.7,0.25009841]
[1625170810549,10.0706,2110.7,2109.7,0.2]
[1625170810648,10.0706,2110.7,2109.7,0.35]
[1625170810805,31.0339,2111.2,2109.8,30.1]
[1625170810806,10.7039,2111.2,2109.8,30.1]
[1625170810899,10.7039,2111.2,2109.9,0.19761719]
[1625170811000,10.7039,2111.2,2109.9,15.34761719]
[1625170811152,6.87,2111.5,2109.9,15.34761719]
[1625170811153,6.87,2111.5,2110.7,7.10137]
[1625170811302,6.87,2111.5,2110.8,0.2]
[1625170811549,6.87,2111.5,2110.7,19.52627]
[1625170811900,6.87,2111.5,2110.8,0.15]
[1625170812404,6.87,2111.5,2111.1,7.10023]
[1625170812603,6.87,2111.5,2111.1,12.11023]
[1625170812701,0.2,2111.9,2111.1,7.10023]
[1625170812800,0.2,2111.9,2111.1,12.11023]
[1625170812900,0.2,2111.9,2111.1,7.10023]
[1625170813051,0.2,2111.9,2111.1,12.11023]
[1625170813155,0.2,2111.9,2111.1,7.10023]
[1625170813252,0.2,2111.9,2111.1,12.11023]
[1625170813352,0.2,2111.9,2111.1,5.01]
[1625170813554,0.2,2111.9,2110.9,12.11086]
[1625170813751,0.2,2111.9,2110.9,12.26086]
[1625170814303,0.2,2111.9,2110.9,5.16]
[1625170814409,0.2,2111.9,2110.9,0.15]
[1625170814505,7.07,2111.9,2110.9,5.16]
[1625170814753,7.07,2111.9,2110.9,0.15]
[1625170815158,12.08,2111.9,2110.9,0.15]
[1625170815910,19.18193,2111.9,2110.9,0.15]
[1625170816009,37.44033,2111.9,2110.4,7.10278]
[1625170816112,48.99205,2111.9,2110.4,5.01]
[1625170816208,42.92812,2111.9,2110.4,5.01]
[1625170816312,42.92812,2111.9,2110.3,15.4227]
[1625170816750,34.92812,2111.9,2110.3,15.4227]
[1625170817052,19.92812,2111.9,2110.3,15.4227]
[1625170817154,16.3764,2111.9,2110.3,22.52562]
[1625170817258,12.08,2111.9,2110.3,22.52562]
[1625170817554,12.08,2111.9,2110.4,0.06]
[1625170817658,12.08,2111.9,2110.4,4.6547]
[1625170817760,12.08,2111.9,2110.5,0.15]
[1625170818308,12.08,2111.9,2110.8,7.10134]
[1625170818556,0.2,2111.9,2110.8,12.11134]
[1625170822248,0.2,2111.9,2110.9,0.15]
[1625170822398,0.2,2111.9,2110.9,3.2832]
[1625170822597,0.2,2111.9,2110.9,8.2932]
[1625170822901,0.2,2111.9,2111.1,7.1006]
[1625170823148,0.2,2111.9,2111.1,12.1106]
[1625170823836,0.2,2111.9,2111.1,5.01]
[1625170824086,0.2,2111.9,2111.0,1.5201]
[1625170824436,0.2,2111.9,2110.9,17.70057]
[1625170826496,0.2,2111.9,2110.9,8.2332]
[1625170826599,0.2,2111.9,2110.9,17.70057]
[1625170828122,7.3019,2111.9,2110.9,17.70057]
[1625170828277,7.3019,2111.9,2110.9,8.2332]
[1625170828372,12.3119,2111.9,2110.9,8.2332]
[1625170831036,12.3119,2111.9,2110.9,15.33484]
[1625170831243,7.3019,2111.9,2110.9,15.33484]
[1625170831393,0.2,2111.9,2110.9,15.33484]
[1625170831589,0.2,2111.9,2111.0,0.06]
[1625170831890,0.2,2111.9,2111.1,0.15]
[1625170832371,0.2,2111.9,2111.4,7.10003]
[1625170832571,0.2,2111.9,2111.4,11.77793]
[1625170834424,0.2,2111.9,2111.4,4.6779]
[1625170834612,0.05,2111.9,2111.2,9.46671]
[1625170834694,0.05,2111.9,2111.2,14.47671]
[1625170839352,0.05,2111.9,2111.2,14.62671]
[1625170839555,0.05,2111.9,2111.3,0.08]
[1625170839753,0.05,2111.9,2111.4,0.15]
[1625170840004,0.05,2111.9,2111.6,7.09821]
[1625170840106,10.1572,2112.9,2111.7,33.21605824]
[1625170840205,10.1572,2112.9,2111.7,37.21605824]
[1625170840303,0.2,2112.9,2111.7,50.22605824]
[1625170840404,0.2,2112.9,2111.8,0.33]
[1625170840506,0.2,2112.9,2111.9,0.19892277]
[1625170840606,0.2,2112.9,2112.0,3.5475192]
[1625170840706,0.2,2112.9,2112.1,0.14573354]
[1625170840860,0.2,2112.9,2112.1,0.32573354]
[1625170841103,0.2,2112.9,2112.3,0.04837207]
[1625170841203,0.2,2112.9,2112.5,7.09505]
[1625170841312,0.2,2112.9,2112.5,10.42135]
[1625170841445,0.2,2112.9,2112.5,15.43135]
[1625170841693,0.00942046,2113.4,2112.6,30.15]
[1625170841796,0.00942046,2113.6,2112.7,0.1158006]
[1625170841898,0.95035709,2112.9,2112.8,24.1]
[1625170841991,0.00942046,2113.6,2112.8,24.1]
[1625170842097,0.00942046,2113.6,2112.9,0.08422641]
[1625170842293,0.00942046,2113.6,2113.2,7.09365]
[1625170842399,1.14690419,2113.9,2113.2,11.17375]
[1625170842547,0.20942046,2113.9,2113.2,16.18375]
[1625170842646,0.20942046,2113.9,2113.2,9.0901]
[1625170842847,0.2,2113.9,2113.2,9.0901]
[1625170842948,0.2,2113.9,2113.2,4.0801]
[1625170843448,0.2,2113.9,2112.9,5.01]
[1625170843449,10.84225,2113.9,2112.9,5.01]
[1625170843545,15.85225,2113.9,2112.8,0.15]
[1625170844243,0.00942046,2113.8,2112.8,0.15]
[1625170844493,7.09542,2113.6,2112.8,0.15]
[1625170844893,0.00942046,2113.5,2112.8,0.15]
[1625170845745,7.10515046,2113.5,2112.8,0.15]
[1625170846002,12.11515046,2113.5,2112.8,0.15]
[1625170846102,12.11515046,2113.5,2112.4,9.01]
[1625170846203,0.00942046,2113.4,2112.4,9.01]
[1625170846305,0.00942046,2113.4,2112.4,5.01]
[1625170846505,0.00942046,2113.4,2112.3,14.61968]
[1625170846755,0.00942046,2113.4,2112.3,9.60968]
[1625170846854,0.00942046,2113.4,2112.3,15.78868]
[1625170846955,0.00942046,2113.6,2112.3,15.78868]
[1625170847157,3.55780046,2113.6,2112.3,15.78868]
[1625170847257,7.10613466,2113.6,2112.3,15.78868]
[1625170847457,7.09619,2113.4,2112.3,15.78868]
[1625170847961,7.09619,2113.4,2112.3,20.79868]
[1625170848400,0.00942046,2113.5,2112.3,20.79868]
[1625170848501,0.00942046,2113.5,2112.3,31.33601653]
[1625170848649,0.00942046,2113.5,2112.4,0.29153342]
[1625170848745,0.00942046,2113.5,2112.4,4.41213342]
[1625170848896,0.2,2113.9,2112.5,0.2044083]
[1625170849100,0.2,2113.9,2112.6,0.1]
[1625170849198,0.2,2113.9,2112.7,0.06220024]
[1625170849301,0.2,2113.9,2112.7,0.33220024]
[1625170849451,0.2,2113.9,2112.7,0.27]
[1625170849550,0.2,2113.9,2112.7,2.73450177]
[1625170849653,7.29418,2113.9,2112.8,9.45824]
[1625170849802,7.29418,2113.9,2112.9,0.15]
[1625170850001,7.29418,2113.9,2112.4,14.46824]
[1625170850150,11.26588,2113.9,2112.4,5.16]
[1625170850415,11.26588,2113.9,2112.4,0.15]
[1625170850416,0.00942046,2113.8,2112.4,0.15]
[1625170850558,0.00942046,2113.8,2112.4,5.16]
[1625170850659,7.09588,2113.3,2112.4,7.24561]
[1625170850808,7.09588,2113.3,2112.4,12.25561]
[1625170850908,7.09588,2113.3,2112.4,7.24561]
[1625170851007,7.09588,2113.3,2112.4,12.25561]
[1625170851950,7.10487046,2113.5,2112.4,12.25561]
[1625170852054,7.10487046,2113.5,2112.4,16.59321]
[1625170852500,0.00942046,2113.4,2112.4,16.59321]
[1625170852716,0.00942046,2113.4,2112.5,0.06]
[1625170852905,0.00942046,2113.4,2112.6,0.15]
[1625170853056,0.00942046,2113.7,2112.6,0.15]
[1625170853256,0.00942046,2113.7,2112.6,4.15]
[1625170853457,0.00942046,2114.1,2112.6,9.16]
[1625170853562,7.29413,2113.9,2113.0,7.09427]
[1625170853661,7.29413,2113.9,2113.0,10.16277]
[1625170853758,7.29413,2113.9,2113.0,15.17277]
[1625170854009,0.2,2113.9,2113.0,15.17277]
[1625170854459,0.00942046,2113.8,2113.0,15.17277]
[1625170854944,0.2,2113.9,2113.0,8.0785]
[1625170855893,9.66012,2113.9,2113.0,8.0785]
[1625170855993,9.66012,2113.9,2112.9,1.66]
[1625170856098,14.67012,2113.9,2112.9,0.15]